lending/lending_fUSD_20260124
["ID","MTS","AMOUNT","RATE_DAILY","PERIOD"]
[403170446,1769240125509,500.0,0.00012887,2]
[403170447,1769240125826,500.0,0.00012887,2]
[403170448,1769240126139,500.0,0.00012887,2]
[403170449,1769240126213,448.28458342,0.00012987,2]
[403170450,1769240126449,500.0,0.00012887,2]
[403170451,1769240186309,2053.65,0.00012185,2]
[403170452,1769240198428,-155.37336821,0.000127,2]
[403170456,1769240311205,534.49,0.00012132,2]
[403170457,1769240318971,-135.80790719,0.000127,2]
[403170458,1769240319031,-302.93771554,0.00012729,2]
[403170459,1769240319091,-299.0523423,0.00012759,2]
[403170460,1769240319151,-222.53705238,0.00012787,2]
[403170461,1769240319209,-222.53705236,0.00012838,2]
[403170462,1769240319273,-222.53705236,0.00012888,2]
[403170463,1769240319331,-300.0,0.00012949,2]
[403170464,1769240319387,-1200.0,0.00012949,2]
[403170465,1769240319443,-500.0,0.0001295,2]
[403170466,1769240319500,-150.0,0.0001295,2]
[403170467,1769240319555,-261.52649644,0.0001295,2]
[403170468,1769240319617,-150.0,0.0001295,2]
[403170469,1769240319677,-500.0,0.0001295,2]
[403170470,1769240319738,-151.80763156,0.0001295,2]
[403170471,1769240319800,-150.0,0.0001295,2]
[403170472,1769240324084,-500.0,0.0001295,2]
[403170473,1769240324141,-500.0,0.0001295,2]
[403170474,1769240324203,-165.34958219,0.0001295,2]
[403170475,1769240324267,-500.0,0.0001295,2]
[403170476,1769240324327,-500.0,0.0001295,2]
[403170477,1769240324387,-500.0,0.0001295,2]
[403170478,1769240324447,-500.0,0.0001295,2]
[403170479,1769240324506,-150.0,0.0001295,2]
[403170480,1769240324560,-150.0,0.0001295,2]
[403170481,1769240324623,-500.0,0.0001295,2]
[403170482,1769240324686,-500.0,0.0001298,2]
[403170483,1769240324749,-500.0,0.0001298,2]
[403170484,1769240330218,-500.0,0.0001298,2]
[403170485,1769240330287,-500.0,0.0001298,2]
[403170486,1769240330347,-500.0,0.0001298,2]
[403170487,1769240330409,-500.0,0.0001298,2]
[403170488,1769240330471,-500.0,0.0001298,2]
[403170489,1769240330531,-500.0,0.0001298,2]
[403170490,1769240330593,-500.0,0.0001298,2]
[403170491,1769240330651,-500.0,0.0001298,2]
[403170492,1769240330711,-500.0,0.0001298,2]
[403170493,1769240330774,-500.0,0.0001298,2]
[403170495,1769240394069,-253.92905068,0.00012367,2]
[403170505,1769240468959,-266.682377,0.00012305,2]
[403170507,1769240549920,503.03291924,0.000176,30]
[403170508,1769240550014,500.0,0.000176,30]
[403170509,1769240628662,515.61,0.00012057,2]
[403170510,1769240628763,515.61,0.00012082,2]
[403170511,1769240628987,515.61,0.00012107,2]
[403170512,1769240629183,515.61,0.00012133,2]
[403170513,1769240629367,515.61,0.00012158,2]
[403170514,1769240629566,515.61,0.00012183,2]
[403170515,1769240633495,-189.91285581,0.00012209,2]
[403170516,1769240639863,-325.69714419,0.00012209,2]
[403170517,1769240639886,-101.78403728,0.00012234,2]
[403170518,1769240642187,-180.10092261,0.00012234,2]
[403170519,1769240643715,-233.72504011,0.00012234,2]
[403170520,1769240643740,-80.20367673,0.0001226,2]
[403170521,1769240648095,-185.90449884,0.0001226,2]
[403170522,1769240649661,-185.73639337,0.0001226,2]
[403170523,1769240652415,-63.76543106,0.0001226,2]
[403170524,1769240652439,-208.67119819,0.00012285,2]
[403170525,1769240655086,-248.98347385,0.00012285,2]
[403170527,1769240693462,127.37516499,0.00011849,2]
[403170528,1769240693486,72.62483501,0.00011849,2]
[403170529,1769240723438,-250.0,0.00012223,2]
[403170530,1769240725544,-173.87026014,0.00012223,2]
[403170531,1769240728304,-175.38621614,0.00012223,2]
[403170532,1769240730443,-164.47203084,0.00012223,2]
[403170533,1769240732821,-1880.52837288,0.00012223,2]
[403170534,1769240732877,-57.95532796,0.00012285,2]
[403170535,1769240732933,-515.61,0.0001231,2]
[403170536,1769240732994,-515.61,0.00012336,2]
[403170537,1769240733056,-515.61,0.00012361,2]
[403170538,1769240733119,-746.07094932,0.00012367,2]
[403170539,1769240733181,-251.0,0.00012367,2]
[403170540,1769240733243,-35.24069968,0.00012382,2]
[403170541,1769240738685,-964.75930032,0.00012382,2]
[403170542,1769240738746,-515.61,0.00012386,2]
[403170543,1769240738810,-1200.0,0.00012411,2]
[403170544,1769240738871,-515.61,0.00012412,2]
[403170545,1769240738934,-515.61,0.00012437,2]
[403170546,1769240738998,-515.61,0.00012463,2]
[403170547,1769240739062,-515.61,0.00012488,2]
[403170548,1769240739128,-214.39139936,0.00012512,2]
[403170549,1769240749035,-85.60860064,0.00012512,2]
[403170550,1769240749102,-500.0,0.00012512,2]
[403170551,1769240749169,-500.0,0.00012512,2]
[403170552,1769240749242,-500.0,0.00012512,2]
[403170553,1769240749308,-500.0,0.00012512,2]
[403170554,1769240749376,-194.21671345,0.00012512,2]
[403170555,1769240749444,-500.0,0.00012512,2]
[403170556,1769240749509,-500.0,0.00012512,2]
[403170557,1769240749574,-500.0,0.00012512,2]
[403170558,1769240749638,-500.0,0.00012512,2]
[403170559,1769240749703,-500.0,0.00012512,2]
[403170560,1769240843058,-1023.577871,0.00012449,2]
[403170561,1769240843127,-300.0,0.00012511,2]
[403170562,1769240843201,-500.0,0.00012512,2]
[403170563,1769240843275,-500.0,0.00012512,2]
[403170564,1769240843342,-500.0,0.00012512,2]
[403170565,1769240843408,-500.0,0.00012512,2]
[403170566,1769240843476,-500.0,0.00012512,2]
[403170567,1769240843548,-500.0,0.00012512,2]
[403170568,1769240843614,-500.0,0.00012512,2]
[403170569,1769240843787,-500.0,0.00012512,2]
[403170570,1769240843857,-500.0,0.00012512,2]
[403170571,1769240843928,-500.0,0.00012512,2]
[403170572,1769240844001,-500.0,0.00012512,2]
[403170573,1769240844075,-500.0,0.00012512,2]
[403170574,1769240844148,-500.0,0.00012512,2]
[403170575,1769240844219,-500.0,0.00012512,2]
[403170576,1769240844290,-500.0,0.00012512,2]
[403170577,1769240844364,-500.0,0.00012512,2]
[403170578,1769240844437,-500.0,0.00012512,2]
[403170579,1769240844656,-203.38143103,0.00012512,2]
[403170580,1769240844719,-515.61,0.00012513,2]
[403170581,1769240844785,-279.15690078,0.00012531,2]
[403170582,1769240844847,-515.61,0.00012539,2]
[403170583,1769240844909,-250.0,0.00012586,2]
[403170584,1769240844974,-395.69,0.00012855,2]
[403170585,1769240845039,-855.0,0.00012859,2]
[403170586,1769240845101,-855.0,0.00012866,2]
[403170587,1769240845160,-434.0,0.00012887,2]
[403170588,1769240845220,-383.65677568,0.00012887,2]
[403170589,1769240845288,-125.79978502,0.00012887,2]
[403170590,1769240845518,-374.20021498,0.00012887,2]
[403170591,1769240845583,-500.0,0.00012887,2]
[403170592,1769240845649,-500.0,0.00012887,2]
[403170593,1769240845918,-640.2477673,0.00012888,2]
[403170594,1769240846122,-1280.4955346,0.00012888,2]
[403170595,1769240847933,-4786.07070778,0.00012888,2]
[403170596,1769240848016,-2652.94822302,0.00012888,2]
[403170597,1769240848026,-5952.19895387,0.00012888,2]
[403170598,1769240848035,-754.61505581,0.00012888,2]
[403170599,1769240848113,-1446.37004419,0.00012888,2]
[403170600,1769240848122,-1056.8328,0.00012888,2]
[403170601,1769240848132,-2500.0,0.00012888,2]
[403170602,1769240848141,-855.0,0.00012893,2]
[403170603,1769240848151,-1230.49,0.000129,2]
[403170604,1769240848161,-1237.72,0.000129,2]
[403170605,1769240848171,-393.10162121,0.000129,2]
[403170606,1769240848965,-75.42837879,0.000129,2]
[403170607,1769240849025,-158.67,0.000129,2]
[403170608,1769240849087,-172.14,0.000129,2]
[403170609,1769240849148,-388.33,0.000129,2]
[403170610,1769240849208,-150.0,0.00012913,2]
[403170611,1769240849269,-150.0,0.0001295,2]
[403170612,1769240849335,-150.0,0.0001295,2]
[403170613,1769240849393,-150.0,0.0001295,2]
[403170614,1769240849453,-500.0,0.0001295,2]
[403170615,1769240849514,-500.0,0.0001295,2]
[403170616,1769240849573,-150.0,0.0001295,2]
[403170617,1769240849631,-150.0,0.0001295,2]
[403170618,1769240849693,-500.0,0.0001295,2]
[403170619,1769240849753,-500.0,0.0001295,2]
[403170620,1769240849813,-500.0,0.0001295,2]
[403170621,1769240849875,-150.0,0.0001295,2]
[403170622,1769240849938,-500.0,0.0001295,2]
[403170623,1769240850001,-150.0,0.0001295,2]
[403170624,1769240850346,-500.0,0.0001295,2]
[403170625,1769240850405,-150.0,0.0001295,2]
[403170626,1769240850463,-215.96483373,0.0001295,2]
[403170627,1769240850521,-500.0,0.0001295,2]
[403170628,1769240850580,-150.0,0.0001295,2]
[403170629,1769240850651,-150.0,0.0001295,2]
[403170630,1769240850710,-150.0,0.0001295,2]
[403170631,1769240850772,-457.50998461,0.0001295,2]
[403170632,1769240850828,-211.57259988,0.0001298,2]
[403170633,1769240850891,-313.79920839,0.0001298,2]
[403170634,1769240850950,-500.0,0.0001298,2]
[403170635,1769240851009,-500.0,0.0001298,2]
[403170636,1769240851067,-500.0,0.0001298,2]
[403170637,1769240851125,-365.15931411,0.0001298,2]
[403170638,1769240851184,-183.18228425,0.0001298,2]
[403170639,1769240851480,-305.63355006,0.0001298,2]
[403170640,1769240851543,-854.2589148,0.00012981,2]
[403170641,1769240851606,-151.0,0.00012981,2]
[403170642,1769240851664,-151.0,0.00012981,2]
[403170643,1769240851723,-151.0,0.00012981,2]
[403170644,1769240851782,-151.0,0.00012981,2]
[403170645,1769240851847,-151.0,0.00012981,2]
[403170646,1769240851905,-151.0,0.00012981,2]
[403170647,1769240851969,-151.0,0.00012981,2]
[403170648,1769240852031,-151.0,0.00012981,2]
[403170649,1769240852092,-151.0,0.00012981,2]
[403170650,1769240852155,-151.0,0.00012981,2]
[403170651,1769240852221,-151.0,0.00012981,2]
[403170652,1769240852288,-500.0,0.00012981,2]
[403170653,1769240852351,-500.0,0.00012981,2]
[403170654,1769240852414,-500.0,0.00012981,2]
[403170655,1769240852479,-500.0,0.00012981,2]
[403170656,1769240855413,-322.6107,0.00012906,2]
[403170657,1769240855479,-500.0,0.00012981,2]
[403170658,1769240855541,-500.0,0.00012981,2]
[403170659,1769240855600,-250.0,0.00012981,2]
[403170660,1769240855668,-250.0,0.00012981,2]
[403170661,1769240855730,-500.0,0.00012981,2]
[403170662,1769240855791,-500.0,0.00012981,2]
[403170663,1769240855851,-228.72712253,0.00012981,2]
[403170664,1769240855913,-500.0,0.00012981,2]
[403170665,1769240855974,-500.0,0.00012981,2]
[403170666,1769240856038,-500.0,0.00012981,2]
[403170667,1769240856095,-200.0,0.00012981,2]
[403170668,1769240856359,-500.0,0.00012981,2]
[403170669,1769240856420,-500.0,0.00012981,2]
[403170670,1769240856478,-500.0,0.00012981,2]
[403170671,1769240856539,-500.0,0.00012981,2]
[403170672,1769240856596,-500.0,0.00012981,2]
[403170673,1769240856654,-500.0,0.00012981,2]
[403170674,1769240856710,-500.0,0.00012981,2]
[403170675,1769240856768,-500.0,0.00012981,2]
[403170676,1769240856824,-500.0,0.00012981,2]
[403170677,1769240856881,-500.0,0.00012981,2]
[403170678,1769240857202,-500.0,0.00012981,2]
[403170679,1769240857266,-500.0,0.00012981,2]
[403170680,1769240857330,-500.0,0.00012981,2]
[403170681,1769240857391,-447.62457317,0.00012981,2]
[403170682,1769240857455,-500.0,0.00012981,2]
[403170683,1769240857517,-500.0,0.00012981,2]
[403170684,1769240857576,-801.48947196,0.00012981,2]
[403170685,1769240857635,-151.0,0.00012981,2]
[403170686,1769240857697,-151.0,0.00012981,2]
[403170687,1769240857757,-151.0,0.00012981,2]
[403170688,1769240857820,-151.0,0.00012981,2]
[403170689,1769240857881,-151.0,0.00012981,2]
[403170690,1769240857945,-491.78190974,0.00012981,2]
[403170691,1769240859016,-174.61919141,0.00012906,2]
[403170692,1769240859078,-8.21809026,0.00012981,2]
[403170693,1769240859142,-151.0,0.00012981,2]
[403170694,1769240859205,-500.0,0.00012981,2]
[403170695,1769240859268,-151.0,0.00012981,2]
[403170696,1769240859329,-151.0,0.00012981,2]
[403170697,1769240859389,-500.0,0.00012981,2]
[403170698,1769240859452,-151.0,0.00012981,2]
[403170699,1769240859513,-500.0,0.00012981,2]
[403170700,1769240859571,-151.0,0.00012981,2]
[403170701,1769240859629,-500.0,0.00012981,2]
[403170702,1769240859689,-151.0,0.00012981,2]
[403170703,1769240859748,-513.33860981,0.00012981,2]
[403170704,1769240859808,-251.98,0.00012986,2]
[403170705,1769240859868,-1000.0,0.00012987,2]
[403170706,1769240859929,-91.69821704,0.00012988,2]
[403170707,1769240860046,-108.30178296,0.00012988,2]
[403170708,1769240860116,151.0,0.00012981,2]
[403170709,1769240864769,151.0,0.00012981,2]
[403170710,1769240864896,151.0,0.00012981,2]
[403170711,1769240865038,151.0,0.00012981,2]
[403170712,1769240865163,151.0,0.00012981,2]
[403170713,1769240865253,854.2589148,0.00012981,2]
[403170714,1769240865342,151.0,0.00012981,2]
[403170715,1769240865469,151.0,0.00012981,2]
[403170716,1769240865673,151.0,0.00012981,2]
[403170717,1769240867106,151.0,0.00012981,2]
[403170718,1769240867458,151.0,0.00012981,2]
[403170719,1769240868060,151.0,0.00012981,2]
[403170720,1769240868526,420.0,0.00012649,2]
[403170721,1769240868677,151.0,0.00012981,2]
[403170722,1769240870271,763.7285,0.00012888,2]
[403170723,1769240874828,420.0,0.00012676,2]
[403170724,1769240883373,150.0,0.00012987,2]
[403170725,1769240886327,420.0,0.00012811,2]
[403170726,1769240891014,500.0,0.0001295,2]
[403170727,1769240891104,500.0,0.0001295,2]
[403170728,1769240892368,150.0,0.0001295,2]
[403170729,1769240893564,500.0,0.0001295,2]
[403170730,1769240893629,500.0,0.0001295,2]
[403170731,1769240893786,500.0,0.0001295,2]
[403170732,1769240894306,500.0,0.0001295,2]
[403170733,1769240894493,150.0,0.0001295,2]
[403170734,1769240894885,150.0,0.0001295,2]
[403170735,1769240896630,150.0,0.0001295,2]
[403170736,1769240898365,955.0,0.00012718,2]
[403170737,1769240912716,2930.31,0.00012988,2]
[403170738,1769240916574,2514.7,0.00012813,2]
[403170739,1769240916633,10000.01,0.00012813,2]
[403170740,1769240937624,10000.01,0.00011233,2]
[403170741,1769240937676,8353.67,0.00011233,2]
[403170742,1769240948505,641.63701,7.945e-05,2]
[403170743,1769241001192,1200.0,0.00012812,2]
[403170744,1769241001257,300.0,0.00012812,2]
[403170745,1769241004658,255.0,0.00012813,2]
[403170746,1769241017229,151.0,0.0001281,2]
[403170747,1769241031891,-1020.54048194,0.00012813,2]
[403170748,1769241031902,-454.19104179,0.00012813,2]
[403170749,1769241032021,-591.94704259,0.00012813,2]
[403170750,1769241032033,-3968.95087844,0.00012813,2]
[403170751,1769241032066,-4892.25406696,0.00012813,2]
[403170752,1769241032078,-309.18560208,0.00012813,2]
[403170784,1769241032705,-4192.77105132,0.00012813,2]
[403170785,1769241032737,-972055.44983488,0.00012813,2]
[403170786,1769241032746,-2500.0,0.00012888,2]
[403170787,1769241032755,-698.10400813,0.00012936,2]
[403170788,1769241032765,-200.0,0.00012988,2]
[403170789,1769241032774,-1000.0,0.00012988,2]
[403170790,1769241032784,-500.0,0.00013,2]
[403170791,1769241032793,-150.0,0.00013005,2]
[403170792,1769241032802,-255.72445101,0.00013005,2]
[403170793,1769241032811,-150.0,0.00013005,2]
[403170794,1769241032820,-500.0,0.00013005,2]
[403170795,1769241032829,-500.0,0.00013005,2]
[403170796,1769241032838,-150.0,0.00013005,2]
[403170797,1769241032847,-150.0,0.00013005,2]
[403170798,1769241032855,-500.0,0.00013005,2]
[403170799,1769241032864,-500.0,0.00013005,2]
[403170800,1769241032874,-249.12402257,0.00013005,2]
[403170801,1769241032883,-150.0,0.00013005,2]
[403170802,1769241032892,-150.0,0.00013005,2]
[403170803,1769241032901,-500.0,0.00013005,2]
[403170804,1769241032910,-500.0,0.00013005,2]
[403170805,1769241032920,-150.0,0.00013005,2]
[403170806,1769241032929,-500.0,0.00013005,2]
[403170807,1769241032938,-500.0,0.00013005,2]
[403170808,1769241032947,-500.0,0.00013005,2]
[403170809,1769241032956,-500.0,0.00013005,2]
[403170810,1769241032966,-150.0,0.00013005,2]
[403170811,1769241032975,-887.43,0.00013005,2]
[403170812,1769241032984,-420.0,0.0001301,2]
[403170813,1769241032994,-247.18,0.00013014,2]
[403170814,1769241033003,-855.0,0.00013025,2]
[403170815,1769241033013,-955.0,0.00013027,2]
[403170816,1769241033022,-561.40693021,0.00013036,2]
[403170817,1769241033032,-316.0,0.0001304,2]
[403170818,1769241033041,-229.0,0.00013052,2]
[403170819,1769241033051,-150.0,0.0001306,2]
[403170820,1769241033061,-152.56096639,0.0001306,2]
[403170821,1769241033070,-500.0,0.0001306,2]
[403170822,1769241033079,-515.22137946,0.0001306,2]
[403170823,1769241033088,-157.50769002,0.0001306,2]
[403170824,1769241033098,-150.0,0.0001306,2]
[403170825,1769241033107,-500.0,0.0001306,2]
[403170826,1769241033116,-500.0,0.0001306,2]
[403170827,1769241033126,-152.18717547,0.0001306,2]
[403170828,1769241033136,-204.43309675,0.0001306,2]
[403170829,1769241033146,-500.0,0.0001306,2]
[403170830,1769241033155,-150.88816703,0.0001306,2]
[403170831,1769241033165,-150.0,0.0001306,2]
[403170832,1769241033175,-500.0,0.0001306,2]
[403170833,1769241033185,-500.0,0.0001306,2]
[403170834,1769241033194,-500.0,0.0001306,2]
[403170835,1769241033204,-500.0,0.0001306,2]
[403170836,1769241033213,-150.0,0.0001306,2]
[403170837,1769241033223,-420.0,0.00013087,2]
[403170838,1769241033232,-200.0,0.00013088,2]
[403170839,1769241033242,-855.0,0.00013101,2]
[403170840,1769241033251,-1126.12341109,0.00013109,2]
[403170841,1769241033261,-262.37919886,0.00013114,2]
[403170842,1769241033271,-360.43006302,0.00013114,2]
[403170843,1769241033280,-240.41022385,0.00013114,2]
[403170844,1769241033289,-500.0,0.00013114,2]
[403170845,1769241033298,-500.0,0.00013114,2]
[403170846,1769241033307,-500.0,0.00013114,2]
[403170847,1769241033317,-164.13003579,0.00013114,2]
[403170848,1769241033326,-159.00537692,0.00013114,2]
[403170849,1769241033335,-500.0,0.00013114,2]
[403170850,1769241033345,-500.0,0.00013114,2]
[403170851,1769241033354,-500.0,0.00013114,2]
[403170852,1769241033364,-206.8526709,0.00013114,2]
[403170853,1769241033372,-200.0,0.00013118,2]
[403170854,1769241033383,-200.0,0.00013118,2]
[403170855,1769241033392,-855.0,0.00013134,2]
[403170856,1769241033401,-200.0,0.00013136,2]
[403170857,1769241033412,-200.0,0.00013137,2]
[403170858,1769241033421,-855.0,0.00013157,2]
[403170859,1769241033430,-225.08864,0.0001316,2]
[403170860,1769241033439,-225.08864,0.0001316,2]
[403170861,1769241033448,-944.0,0.00013164,2]
[403170862,1769241033457,-500.0,0.00013169,2]
[403170863,1769241033467,-500.0,0.00013169,2]
[403170864,1769241033476,-500.0,0.00013169,2]
[403170865,1769241033485,-500.0,0.00013169,2]
[403170866,1769241033494,-500.0,0.00013169,2]
[403170867,1769241033503,-500.0,0.00013169,2]
[403170868,1769241033512,-150.0,0.000132,2]
[403170869,1769241033521,-300.0,0.000132,2]
[403170870,1769241033531,-2461.38,0.000132,2]
[403170871,1769241033539,-150.0,0.000132,2]
[403170872,1769241033548,-344.28,0.000132,2]
[403170873,1769241033558,-949.25,0.000132,2]
[403170874,1769241033568,-612.72,0.000132,2]
[403170875,1769241033580,-150.0,0.000132,2]
[403170876,1769241033589,-150.0,0.000132,2]
[403170877,1769241033599,-2461.38,0.000132,2]
[403170878,1769241033608,-179.89,0.000132,2]
[403170879,1769241033617,-468.53,0.000132,2]
[403170880,1769241033627,-150.0,0.000132,2]
[403170881,1769241033636,-172.14,0.000132,2]
[403170882,1769241033645,-179.83,0.000132,2]
[403170883,1769241033654,-300.0,0.000132,2]
[403170884,1769241033663,-484.52,0.000132,2]
[403170885,1769241033672,-239.66101332,0.00013205,2]
[403170886,1769241033681,-171.45,0.00013214,2]
[403170887,1769241033691,-200.0,0.00013219,2]
[403170888,1769241033700,-508.44649429,0.00013224,2]
[403170889,1769241033710,-500.0,0.00013224,2]
[403170890,1769241033720,-500.0,0.00013224,2]
[403170891,1769241033730,-500.0,0.00013224,2]
[403170892,1769241033739,-500.0,0.00013224,2]
[403170893,1769241033748,-500.0,0.00013224,2]
[403170894,1769241033757,-2682.0,0.0001323,2]
[403170895,1769241033767,-200.0,0.00013249,2]
[403170896,1769241033776,-200.0,0.00013249,2]
[403170897,1769241033785,-325.12,0.00013256,2]
[403170898,1769241033795,-855.0,0.0001326,2]
[403170899,1769241033804,-201.35617577,0.00013279,2]
[403170900,1769241033813,-500.0,0.00013279,2]
[403170901,1769241033822,-212.36201849,0.00013279,2]
[403170902,1769241033831,-500.0,0.00013279,2]
[403170903,1769241033840,-500.0,0.00013279,2]
[403170904,1769241033849,-887.43,0.00013279,2]
[403170905,1769241033859,-151.0,0.00013287,2]
[403170906,1769241033868,-151.0,0.00013287,2]
[403170907,1769241033878,-202.87255959,0.00013287,2]
[403170908,1769241033887,-1000.0,0.00013288,2]
[403170909,1769241033897,-1000.0,0.00013288,2]
[403170910,1769241033906,-1000.0,0.00013288,2]
[403170911,1769241033916,-1000.0,0.00013288,2]
[403170912,1769241033926,-1000.0,0.00013288,2]
[403170913,1769241033935,-1000.0,0.00013288,2]
[403170914,1769241033945,-308.48884427,0.00013288,2]
[403170971,1769241040154,-691.51115573,0.00013288,2]
[403170972,1769241040164,-1000.0,0.00013288,2]
[403170973,1769241040173,-1000.0,0.00013288,2]
[403170974,1769241040182,-167.48136066,0.00013288,2]
[403170975,1769241040208,-832.51863934,0.00013288,2]
[403170976,1769241040217,-302.26166024,0.00013288,2]
[403170977,1769241040228,-697.73833976,0.00013288,2]
[403170978,1769241040236,-103.95368382,0.00013288,2]
[403170979,1769241040247,-896.04631618,0.00013288,2]
[403170980,1769241040256,-43.47399302,0.00013288,2]
[403170981,1769241040267,-956.52600698,0.00013288,2]
[403170982,1769241040276,-133.52522562,0.00013288,2]
[403170994,1769241043205,-866.47477438,0.00013288,2]
[403170995,1769241043215,-244.30940485,0.00013288,2]
[403170996,1769241043301,-755.69059515,0.00013288,2]
[403170997,1769241043311,-1000.0,0.00013288,2]
[403170998,1769241043320,-1000.0,0.00013288,2]
[403170999,1769241043329,-446.20713794,0.00013288,2]
[403171000,1769241043340,-345.40223891,0.00013288,2]
[403171001,1769241043434,-208.39062315,0.00013288,2]
[403171002,1769241043444,-488.6993284,0.00013288,2]
[403171003,1769241043464,-511.3006716,0.00013288,2]
[403171004,1769241043476,-1000.0,0.00013288,2]
[403171005,1769241043488,-1000.0,0.00013288,2]
[403171006,1769241043497,-1000.0,0.00013288,2]
[403171007,1769241043506,-1000.0,0.00013288,2]
[403171008,1769241043516,-1000.0,0.00013288,2]
[403171009,1769241043524,-1000.0,0.00013288,2]
[403171010,1769241043534,-1000.0,0.00013288,2]
[403171011,1769241043543,-1000.0,0.00013288,2]
[403171012,1769241043552,-1000.0,0.00013288,2]
[403171013,1769241043561,-989.92653818,0.00013288,2]
[403171014,1769241043571,-225.08863,0.00013288,2]
[403171015,1769241043584,-225.08864,0.00013288,2]
[403171016,1769241043593,-225.08863,0.00013288,2]
[403171017,1769241043602,-225.08864,0.00013288,2]
[403171018,1769241043611,-270.19983315,0.00013288,2]
[403171019,1769241043621,-151.0,0.00013288,2]
[403171020,1769241043630,-8220.97766034,0.00013289,2]
[403171021,1769241043699,-1779.02233966,0.00013289,2]
[403171022,1769241043708,-150.0,0.000133,2]
[403171023,1769241043718,-150.0,0.000133,2]
[403171024,1769241043727,-150.0,0.000133,2]
[403171025,1769241043735,-300.0,0.000133,2]
[403171026,1769241043745,-150.0,0.000133,2]
[403171027,1769241043754,-612.72,0.000133,2]
[403171028,1769241043763,-359.78,0.000133,2]
[403171029,1769241043772,-557.07,0.000133,2]
[403171030,1769241043782,-1241.93,0.000133,2]
[403171031,1769241043791,-218.72,0.000133,2]
[403171032,1769241043800,-1230.49,0.000133,2]
[403171033,1769241043809,-359.78,0.000133,2]
[403171034,1769241043818,-1117.3,0.000133,2]
[403171035,1769241043830,-300.0,0.000133,2]
[403171036,1769241043839,-172.14,0.000133,2]
[403171037,1769241043848,-484.52,0.000133,2]
[403171038,1769241043858,-152.66,0.000133,2]
[403171039,1769241043867,-150.0,0.000133,2]
[403171040,1769241043876,-936.78,0.000133,2]
[403171041,1769241043886,-167.65,0.00013304,2]
[403171042,1769241043895,-2836.45057694,0.00013327,2]
[403171047,1769241046858,-4522.16842306,0.00013327,2]
[403171048,1769241046867,-585.92,0.00013327,2]
[403171049,1769241046876,-243.2422398,0.00013327,2]
[403171050,1769241046886,-1315.0,0.00013328,2]
[403171051,1769241046895,-500.0,0.00013334,2]
[403171052,1769241046904,-500.0,0.00013334,2]
[403171053,1769241046913,-500.0,0.00013334,2]
[403171054,1769241046922,-200.0,0.00013351,2]
[403171055,1769241046932,-894.0,0.00013359,2]
[403171056,1769241046942,-200.0,0.00013382,2]
[403171057,1769241046952,-200.0,0.00013382,2]
[403171058,1769241046962,-500.0,0.00013388,2]
[403171059,1769241046971,-500.0,0.00013388,2]
[403171060,1769241046980,-447.61706048,0.00013388,2]
[403171061,1769241046990,-1249.0254388,0.000134,2]
[403171062,1769241047000,-278.64,0.000134,2]